bitfinex-derivatives/quotes_ETHF0:USTF0_20250620
["timestamp","ask_amount","ask_price","bid_price","bid_amount"]
[1750437943891,3.2078,2489.2,2488.9,0.6613]
[1750437944096,0.80344,2489.1,2489.0,0.80342]
[1750437944309,0.80344,2489.1,2489.0,0.80344]
[1750437944997,0.80345,2489.1,2489.0,0.80345]
[1750437945197,0.80341,2489.2,2489.1,0.80341]
[1750437947707,0.80338,2489.3,2489.2,0.80336]
[1750437948001,1.48865,2489.4,2489.3,0.80336]
[1750437948501,3.2078,2489.8,2489.3,11.63528207]
[1750437948707,4.01103,2489.8,2489.7,0.80323]
[1750437948899,0.80328,2489.6,2489.5,0.80326]
[1750437949601,0.80326,2489.7,2489.6,0.80323]
[1750437949798,4.01102,2489.8,2489.7,0.80323]
[1750437949993,3.2078,2489.8,2489.1,9.62693207]
[1750437950192,0.80342,2489.1,2489.0,0.6281]
[1750437950396,0.80342,2489.1,2488.6,16.17720207]
[1750437950397,2.00861,2489.1,2488.8,0.80348]
[1750437950597,4.03981,2489.1,2488.9,0.80346]
[1750437950901,0.80351,2489.0,2488.9,0.80346]
[1750437951102,0.80352,2488.9,2488.8,0.8035]
[1750437952303,0.80348,2489.0,2488.9,0.80346]
[1750437952501,0.80346,2489.0,2488.9,0.80346]
[1750437952701,0.80346,2489.0,2488.7,12.26391207]
[1750437952702,0.673,2489.1,2489.0,0.80346]
[1750437952904,1.47642,2489.1,2489.0,10.43039207]
[1750437953102,0.06933781,2489.4,2489.0,14.84336207]
[1750437953402,0.87266781,2489.4,2489.3,0.80336]
[1750437953607,0.06933781,2489.4,2489.3,10.43029207]
[1750437959403,0.87266781,2489.4,2489.3,10.43029207]
[1750437959602,0.87268781,2489.4,2489.2,3.2078]
[1750437959912,0.87268781,2489.4,2489.3,0.80336]
[1750437960205,0.87268781,2489.4,2489.0,0.80344]
[1750437960206,0.80342,2489.1,2489.0,0.80344]
[1750437960411,0.80352,2488.8,2488.7,7.97234]
[1750437960709,0.80352,2488.8,2488.7,6.517]
[1750437960902,0.80361,2488.6,2488.5,0.8036]
[1750437961108,0.6438,2489.0,2488.5,12.83473207]
[1750437961402,1.17025409,2488.9,2488.8,10.43045207]
[1750437961600,3.2078,2489.1,2489.0,0.80346]
[1750437962512,4.01122,2489.1,2489.0,0.80346]
[1750437962810,3.2078,2489.1,2489.0,0.80346]
[1750437963910,0.80332,2489.5,2489.4,0.80329]
[1750437964107,1.17152236,2489.5,2489.4,0.80329]
[1750437964310,0.6438,2489.6,2489.5,0.80329]
[1750437964610,1.81532845,2489.6,2489.5,0.80329]
[1750437964808,1.17152845,2489.6,2489.5,0.80329]
[1750437965006,3.2078,2489.7,2489.6,0.80326]
[1750437965213,4.37964793,2489.7,2489.6,0.80326]
[1750437966405,1.17184793,2489.7,2489.6,0.80326]
[1750437966605,3.2078,2490.3,2490.2,0.80307]
[1750437966806,2.6311,2490.5,2490.4,0.80301]
[1750437967013,2.6311,2490.5,2490.2,12.83473207]
[1750437967511,8.90520735,2490.8,2490.2,12.83473207]
[1750437967710,0.80288,2490.8,2490.3,0.6282]
[1750437967910,5.59600735,2490.9,2489.9,1.2595]
[1750437967911,1.2972,2490.7,2489.9,1.2595]
[1750437968112,0.80296,2490.6,2490.1,10.43002207]
[1750437968302,4.505,2490.7,2490.4,9.62693207]
[1750437968508,3.2078,2490.7,2490.4,10.42993207]
[1750437968704,3.2078,2490.7,2490.4,9.62693207]
[1750437968912,3.2078,2490.7,2490.4,10.42992207]
[1750437969110,2.6311,2491.0,2490.5,0.80295]
[1750437969111,5.8389,2491.0,2490.5,0.80295]
[1750437969317,0.80285,2490.9,2490.7,9.62693207]
[1750437969611,0.80284,2490.9,2490.7,9.62693207]
[1750437969820,6.64173,2491.0,2490.7,9.62693207]
[1750437970004,5.8389,2491.0,2490.7,9.62693207]
[1750437970211,3.2078,2491.4,2490.8,3.2078]
[1750437970422,5.1467,2491.4,2491.0,9.62693207]
[1750437970608,0.80277,2491.2,2491.0,9.62693207]
[1750437971010,0.80278,2491.1,2491.0,9.62693207]
[1750437971208,0.80282,2491.0,2490.8,12.83473207]
[1750437971818,0.80279,2491.1,2490.8,12.83473207]
[1750437972018,5.1467,2491.4,2490.8,13.63759207]
[1750437972019,0.80277,2491.2,2490.8,13.63759207]
[1750437972213,0.80279,2491.1,2490.9,0.6464]
[1750437972514,0.80277,2491.2,2490.9,1.44923]
[1750437972716,5.1467,2491.4,2491.1,9.62693207]
[1750437972915,0.80275,2491.2,2491.1,9.62693207]
[1750437975912,0.80281,2491.0,2490.9,16.78733207]
[1750437976104,2.00699,2491.1,2490.4,1.2745]
[1750437976310,0.80294,2490.6,2490.5,0.6588]
[1750437976513,0.80294,2490.6,2490.2,9.62693207]
[1750437976514,2.00738,2490.6,2490.2,9.62693207]
[1750437976710,0.80304,2490.3,2490.2,10.28573207]
[1750437977020,0.80304,2490.3,2490.2,17.60280207]
[1750437977320,0.80302,2490.4,2490.3,0.80301]
[1750437977510,0.80304,2490.3,2490.2,17.60278207]
[1750437977706,0.80304,2490.3,2490.2,20.81058207]
[1750437977912,3.39012,2490.7,2490.2,25.00753207]
[1750437978112,0.80303,2490.4,2490.3,0.803]
[1750437978312,0.80303,2490.4,2490.3,10.42993207]
[1750437978514,0.80303,2490.4,2490.3,11.69943207]
[1750437978823,0.80303,2490.4,2490.3,17.41543207]
[1750437979814,0.80303,2490.4,2490.3,16.14593207]
[1750437980013,0.87236781,2490.4,2490.3,16.14593207]
[1750437980514,0.8031,2490.1,2490.0,16.14593207]
[1750437980716,2.00763,2490.3,2489.9,3.2078]
[1750437980717,0.80313,2490.0,2489.9,3.2078]
[1750437980915,0.80313,2490.0,2489.9,9.7268]
[1750437981117,0.8032,2489.8,2489.7,7.1902]
[1750437981715,0.8032,2489.9,2489.8,0.80317]
[1750437982222,0.80317,2490.0,2489.9,0.80314]
[1750437982523,0.80317,2490.0,2489.9,9.62693207]
[1750437983124,0.80317,2490.0,2489.9,16.14593207]
[1750437983717,2.00795,2489.9,2489.6,0.6554]
[1750437984016,0.80333,2489.4,2489.3,6.519]
[1750437984523,0.80346,2489.0,2488.9,3.2078]
[1750437984714,0.80346,2489.0,2488.9,6.519]
[1750437984918,0.80346,2489.0,2488.9,7.32249]
[1750437985720,0.80346,2489.0,2488.9,6.519]
[1750437986222,0.80349,2488.9,2488.8,6.52]
[1750437986618,0.80352,2488.8,2488.7,10.31583207]
[1750437986916,0.80352,2488.8,2488.7,16.83583207]
[1750437987317,0.80352,2488.8,2488.7,20.04363207]
[1750437987514,0.80352,2488.8,2488.7,16.83583207]
[1750437987820,0.80359,2488.6,2488.5,9.62693207]
[1750437988015,0.80365,2488.4,2488.3,7.20931]
[1750437988219,0.80365,2488.4,2488.3,6.57051]
[1750437988620,0.80365,2488.4,2488.3,0.05051]
[1750437990025,1.48135,2488.4,2488.3,0.05051]
[1750437990229,0.6777,2488.4,2488.3,0.05051]
[1750437990628,3.2078,2489.0,2488.4,2.00914]
[1750437990831,3.2078,2489.0,2488.9,9.62693207]
[1750437991332,0.80346,2489.0,2488.9,9.62693207]
[1750437991626,2.14658,2489.0,2488.7,10.43048207]
[1750437991924,4.5509,2489.0,2488.5,0.6628]
[1750437992224,0.80353,2488.8,2488.5,0.6628]
[1750437992432,0.80353,2488.8,2488.5,7.9884]
[1750437992638,1.3431,2488.7,2488.6,0.80358]
[1750437993726,1.3431,2488.7,2488.6,10.43051207]
[1750437993936,4.01126,2489.0,2488.8,0.8035]
[1750437994128,1.2678,2488.9,2488.8,0.8035]
[1750437995128,1.2678,2488.9,2488.7,0.80355]
[1750437995435,1.2678,2488.9,2488.6,9.62693207]
[1750437995436,0.80354,2488.8,2488.6,9.62693207]
[1750437995636,0.80354,2488.8,2488.6,0.80359]
[1750437995838,1.2678,2488.7,2488.6,0.80359]
[1750437996835,4.01127,2489.0,2488.6,9.62693207]
[1750437997043,4.01127,2489.0,2488.9,0.80349]
[1750437997346,0.80351,2488.9,2488.8,0.8035]
[1750437998348,3.2078,2489.0,2488.9,0.80349]
[1750437999344,4.01126,2489.0,2488.9,0.80349]
[1750437999539,0.80349,2488.9,2488.8,0.8035]
[1750437999847,0.80355,2488.8,2488.7,0.80353]
[1750438000243,0.80355,2488.7,2488.6,9.62693207]
[1750438000439,1.44785,2488.7,2488.6,0.80359]
[1750438000643,0.80365,2488.4,2488.3,0.05051]
[1750438000853,0.80373,2488.2,2488.1,0.80373]
[1750438001054,0.80376,2488.1,2488.0,0.80376]
[1750438001246,0.80385,2487.8,2487.7,3.2078]
[1750438001452,0.80391,2487.7,2487.6,0.8039]
[1750438001653,3.2078,2488.1,2487.5,2.00986]
[1750438001957,0.6443,2488.0,2487.9,0.80381]
[1750438002546,0.6443,2488.0,2487.9,10.43074207]
[1750438002745,6.523,2488.3,2487.9,9.62693207]
[1750438002945,0.80373,2488.2,2488.1,0.80373]
[1750438003153,0.8038,2488.0,2487.9,0.80381]
[1750438003542,0.8038,2488.0,2487.9,0.8038]
[1750438003543,0.80381,2488.0,2487.9,0.8038]
[1750438004050,0.80379,2488.0,2487.9,0.80379]
[1750438004249,0.80378,2488.0,2487.9,0.80379]
[1750438004950,2.00931,2488.2,2487.7,11.62982214]
[1750438005158,0.8038,2488.0,2487.9,0.8038]
[1750438005347,0.80383,2487.9,2487.8,0.80382]
[1750438006247,0.80381,2488.0,2487.9,0.8038]
[1750438007558,0.80384,2487.9,2487.8,0.80382]
[1750438008154,3.2078,2488.1,2487.8,0.80382]
[1750438008463,0.8038,2488.0,2487.9,0.80379]
[1750438008660,0.80385,2487.9,2487.8,0.80383]
[1750438009557,5.21719,2488.1,2487.6,0.6419]
[1750438009753,0.80388,2487.8,2487.7,0.80386]
[1750438010258,0.67,2488.0,2487.4,21.32952214]
[1750438010259,2.00954,2487.9,2487.4,21.32952214]
[1750438010457,0.80391,2487.6,2487.5,0.80391]
[1750438010654,1.3128,2487.9,2487.4,21.32952214]
[1750438010961,0.8039,2487.7,2487.6,0.80389]
[1750438011549,0.80394,2487.6,2487.5,0.80392]
[1750438011859,0.804,2487.4,2487.3,0.80397]
[1750438012253,0.80401,2487.3,2487.2,6.524]
[1750438012654,0.80401,2487.3,2487.2,7.32804]
[1750438013252,5.31087,2487.5,2487.4,0.80397]
[1750438013557,3.2078,2487.5,2487.4,0.80397]
[1750438014360,3.2078,2487.5,2487.4,11.74959214]
[1750438014867,3.8778,2488.0,2487.9,0.80381]
[1750438015061,1.16891121,2488.0,2487.9,0.80381]
[1750438015262,0.6687,2488.2,2488.0,0.80375]
[1750438015562,1.97324067,2488.1,2488.0,0.80375]
[1750438016259,0.80383,2488.0,2487.9,0.80379]
[1750438016468,0.80385,2487.9,2487.8,0.80384]
[1750438016962,3.30304,2488.1,2487.9,0.80378]
[1750438016963,0.8038,2488.0,2487.9,0.80378]
[1750438017155,1.97077251,2488.0,2487.9,0.80378]
[1750438017468,0.80388,2487.8,2487.7,0.80385]
[1750438017858,4.68025,2488.2,2488.1,0.80375]
[1750438018060,5.84756235,2488.2,2488.1,0.80375]
[1750438018658,0.80379,2488.1,2488.0,0.80377]
[1750438018861,1.97110235,2488.1,2488.0,0.80377]
[1750438020064,1.16731235,2488.1,2488.0,0.80377]
[1750438020369,0.80381,2487.9,2487.8,1.46631]
[1750438020562,0.80381,2487.9,2487.8,0.80381]
[1750438020759,1.97110346,2487.9,2487.8,0.80381]
[1750438020966,2.0097,2487.7,2487.0,5.21806]
[1750438021262,5.21782,2487.3,2486.9,0.80413]
[1750438021563,5.21782,2487.3,2486.7,11.0797]
[1750438021564,0.80416,2486.9,2486.7,11.0797]
[1750438021766,0.80416,2486.9,2486.8,0.80414]
[1750438021966,0.8042,2486.7,2486.6,0.80421]
[1750438022161,6.57789,2487.0,2486.4,6.525]
[1750438022362,5.21834,2486.7,2486.1,6.525]
[1750438022565,5.21834,2486.7,2485.9,0.6533]
[1750438022566,3.2078,2486.4,2485.9,0.6533]
[1750438022876,0.80443,2486.0,2485.9,0.6533]
[1750438023057,0.80443,2486.0,2485.9,0.80446]
[1750438023258,1.3598,2486.3,2485.8,16.15615364]
[1750438023259,1.3598,2486.3,2485.8,16.96061364]
[1750438023458,0.80437,2486.2,2485.8,16.15615364]
[1750438023769,1.3598,2486.3,2486.1,9.63115364]
[1750438023965,0.6383,2486.4,2486.1,9.63115364]
[1750438024270,0.80436,2486.2,2486.1,9.63115364]
[1750438024563,1.2537,2486.3,2485.9,10.43559364]
[1750438024767,0.80441,2486.1,2485.9,10.43559364]
[1750438025070,0.80441,2486.1,2485.9,0.80445]
[1750438025366,1.2537,2486.3,2486.1,0.80439]
[1750438025367,2.05804,2486.3,2486.1,0.80439]
[1750438025567,1.2537,2486.3,2486.0,0.80442]
[1750438025760,0.80437,2486.2,2486.0,0.80442]
[1750438026066,0.80438,2486.2,2486.0,0.80441]
[1750438026263,0.80439,2486.1,2485.9,0.80444]
[1750438026569,2.05812,2486.1,2485.9,0.80445]
[1750438026775,2.05812,2486.1,2485.8,6.525]
[1750438026776,1.2537,2486.1,2485.8,6.525]
[1750438027066,0.80444,2486.0,2485.8,7.32947]
[1750438027365,1.3186,2485.9,2485.8,0.80447]
[1750438029065,1.3186,2485.9,2485.3,10.96401687]
[1750438029365,1.3186,2485.9,2485.2,11.1132]
[1750438029366,3.2078,2485.8,2485.6,0.80455]
[1750438029559,0.80457,2485.6,2485.5,0.80458]
[1750438029760,6.527,2485.6,2485.2,4.01247]
[1750438029961,0.80464,2485.4,2484.9,2.01194]
[1750438030267,3.2078,2485.5,2485.4,0.80462]
[1750438030462,1.3339,2485.6,2485.4,0.80462]
[1750438030670,1.3339,2485.6,2485.5,0.80459]
[1750438031273,0.8046,2485.5,2485.4,0.8046]
[1750438031664,0.80463,2485.4,2485.3,0.80464]
[1750438031974,1.3339,2485.4,2485.3,0.80464]
[1750438032157,1.3339,2485.4,2484.9,2.01196]
[1750438032361,2.13853,2485.4,2485.3,0.80465]
[1750438032560,1.3339,2485.4,2485.3,0.80465]
[1750438032762,7.2059,2485.5,2485.4,0.80462]
[1750438032970,0.6386,2485.7,2485.6,0.80456]
[1750438033270,1.962,2485.7,2485.6,0.80456]
[1750438033969,6.53,2486.0,2485.9,0.80446]
[1750438034177,9.7378,2486.1,2486.0,0.80443]
[1750438034466,1.9769,2486.2,2486.1,0.8044]
[1750438034772,0.6535,2486.2,2486.1,0.8044]
[1750438035167,1.9769,2486.2,2486.1,0.8044]
[1750438035367,2.78126,2486.2,2486.1,0.8044]
[1750438035568,1.9769,2486.2,2486.1,0.8044]
[1750438036871,4.0121,2486.4,2486.3,0.80433]
[1750438037078,0.80434,2486.3,2486.2,0.80433]
[1750438037374,0.80439,2486.2,2486.1,0.80438]
[1750438038083,3.2078,2486.7,2486.3,0.80433]
[1750438038268,6.53,2486.8,2486.5,0.80425]
[1750438038462,0.80428,2486.5,2486.4,0.80427]
[1750438038869,2.14108,2486.5,2486.4,0.80427]
[1750438039074,3.49638,2486.5,2486.4,0.80427]
[1750438039275,0.80431,2486.4,2486.3,0.8043]
[1750438039468,0.80436,2486.3,2486.2,0.80434]
[1750438039665,0.80435,2486.3,2486.2,0.80434]
[1750438039870,2.15964,2486.3,2486.2,0.80436]
[1750438040278,1.3553,2486.3,2486.2,0.80436]
[1750438041176,1.3553,2486.3,2485.8,3.8346]
[1750438041381,0.80447,2485.9,2485.8,0.80447]
[1750438041681,0.80443,2486.0,2485.9,0.80443]
[1750438041978,4.5631,2486.1,2485.6,0.6475]
[1750438042281,0.80451,2485.8,2485.7,0.80449]
[1750438042489,1.3821,2485.9,2485.6,0.80453]
[1750438042490,0.80452,2485.7,2485.6,0.80453]
[1750438042781,0.80454,2485.7,2485.6,0.80453]
[1750438043179,0.80456,2485.6,2485.5,3.2078]
[1750438043679,0.6539,2485.8,2485.5,3.2078]
[1750438043870,1.45841,2485.8,2485.7,0.80452]
[1750438044070,0.80456,2485.7,2485.6,0.80454]
[1750438044268,0.80456,2485.7,2485.3,20.20134687]
[1750438044269,2.01132,2485.7,2485.3,0.6607]
[1750438044472,2.01132,2485.7,2485.0,14.17181687]
[1750438044473,3.2078,2485.5,2485.0,0.6712]
[1750438044668,0.80463,2485.4,2485.3,0.80463]
[1750438044975,4.01239,2485.5,2485.4,0.80462]
[1750438045179,0.80459,2485.5,2485.4,0.80462]
[1750438045485,0.80462,2485.5,2485.4,0.80461]
[1750438045779,0.80462,2485.5,2485.2,0.6538]
[1750438045780,0.80465,2485.3,2485.2,0.6538]
[1750438045979,0.80469,2485.2,2485.1,0.80471]
[1750438046682,0.80468,2485.3,2485.2,0.80466]
[1750438047082,0.80464,2485.4,2485.3,0.80463]
[1750438047383,0.80469,2485.3,2485.2,0.80467]
[1750438048177,0.80462,2485.4,2485.3,0.80463]
[1750438048382,0.6541,2485.5,2485.1,9.63679652]
[1750438048383,0.80468,2485.3,2485.2,0.80466]
[1750438048783,0.80469,2485.2,2485.1,10.44149652]
[1750438049284,0.80469,2485.2,2485.1,0.8047]
[1750438050572,0.80472,2485.1,2485.0,14.32053652]
[1750438050777,0.80471,2485.2,2485.1,0.80471]
[1750438051483,0.80477,2485.0,2484.9,0.80477]
[1750438051790,0.80475,2485.0,2484.9,0.80475]
[1750438052478,0.80474,2485.1,2484.9,0.80475]
[1750438052680,0.80478,2484.9,2484.8,0.6259]
[1750438052880,0.80482,2484.8,2484.7,1.44043]
[1750438053188,0.80478,2484.9,2484.8,0.80481]
[1750438054087,0.80482,2484.8,2484.7,1.44042]
[1750438054386,0.8048,2484.9,2484.8,0.80481]
[1750438054681,0.80485,2484.7,2484.6,4.01266]
[1750438054886,5.21971,2485.0,2484.4,18.15049652]
[1750438054887,1.3689,2484.9,2484.4,2.6061]
[1750438055083,0.8049,2484.6,2484.5,0.80489]
[1750438055587,0.80491,2484.5,2484.4,0.6259]
[1750438055783,0.80495,2484.4,2484.3,3.2078]
[1750438055982,1.3689,2484.4,2484.0,0.80505]
[1750438056183,0.80506,2484.1,2484.0,0.80505]
[1750438057084,0.80509,2484.0,2483.9,0.80509]
[1750438057282,0.80506,2484.1,2484.0,0.80504]
[1750438057478,0.80503,2484.2,2484.1,0.80502]
[1750438057776,0.6775,2484.4,2483.8,16.15133652]
[1750438057983,7.37299,2484.3,2484.2,0.80498]
[1750438058178,3.2078,2484.8,2484.2,9.63679652]
[1750438058480,0.80485,2484.8,2484.7,0.80482]
[1750438058682,7.86532,2485.1,2484.6,9.63679652]
[1750438058985,0.80482,2484.8,2484.7,0.80485]
[1750438059190,0.80485,2484.8,2484.6,10.44165652]
[1750438059489,0.80485,2484.7,2484.6,0.80486]
[1750438059786,0.80488,2484.6,2484.5,0.8049]
[1750438060088,1.2734,2484.9,2484.4,3.2078]
[1750438060281,1.2734,2484.9,2484.8,0.80482]
[1750438060595,0.80475,2485.0,2484.9,0.80478]
[1750438060792,1.97185127,2485.0,2484.9,0.80478]
[1750438060989,1.16710127,2485.0,2484.7,2.01213]
[1750438061190,3.2078,2485.2,2484.8,9.63679652]
[1750438061390,0.80477,2485.0,2484.9,0.80475]
[1750438061986,0.80483,2484.8,2484.7,0.8048]
[1750438062301,0.80481,2484.9,2484.8,0.80479]
[1750438062502,0.80477,2485.0,2484.9,0.80475]
[1750438062693,0.80481,2484.9,2484.8,0.80479]
[1750438063396,0.80478,2485.0,2484.9,0.80477]
[1750438063598,0.80478,2485.0,2484.3,0.6442]
[1750438063599,0.80489,2484.6,2484.2,2.01253]
[1750438063800,0.80495,2484.4,2484.2,0.6902]
[1750438064099,0.80498,2484.3,2484.2,1.49518]
[1750438064300,0.80497,2484.4,2484.3,0.80497]
[1750438064503,4.5465,2484.5,2484.2,0.6902]
[1750438064892,5.35143,2484.5,2484.4,0.80495]
[1750438065100,0.80498,2484.3,2484.2,1.49519]
[1750438065294,0.80497,2484.4,2484.3,0.80496]
[1750438066498,3.2078,2484.5,2484.0,2.01268]
[1750438066689,3.2078,2484.5,2484.3,0.80497]
[1750438066690,0.80498,2484.4,2484.3,0.80497]
[1750438067098,4.01273,2484.5,2484.4,0.80495]
[1750438067299,4.01273,2484.5,2483.0,3.2078]
[1750438067300,3.2078,2484.5,2483.0,3.2078]
[1750438067599,0.80502,2484.2,2483.7,2.6483]
[1750438067800,3.2078,2484.4,2484.3,0.80498]
[1750438068006,3.2078,2484.4,2484.3,7.37298]
[1750438068506,0.80486,2484.7,2484.6,0.80485]
[1750438069503,4.01264,2484.8,2484.7,0.80485]
[1750438069705,4.01264,2484.8,2484.7,7.63085]
[1750438070308,3.2078,2484.8,2484.7,7.63085]
[1750438071611,4.01262,2484.8,2484.7,6.826]
[1750438072702,5.18224269,2484.8,2484.7,6.826]
[1750438075707,5.18224269,2484.8,2484.6,0.80488]
[1750438075708,0.80488,2484.7,2484.6,0.80488]
[1750438075909,2.47222269,2484.7,2484.3,0.6354]
[1750438076113,0.80493,2484.5,2484.4,0.80493]
[1750438076407,4.01272,2484.5,2484.4,0.80495]
[1750438076806,0.80495,2484.4,2484.3,8.26636]
[1750438077003,0.80495,2484.4,2484.3,7.4614]
[1750438077200,0.80495,2484.4,2484.3,6.826]
[1750438077512,0.80495,2484.4,2484.3,7.63098]
[1750438077700,4.01274,2484.5,2484.4,0.80495]
[1750438077904,4.01274,2484.5,2484.3,6.826]
[1750438077905,0.80495,2484.4,2484.3,7.63096]
[1750438078604,0.80495,2484.4,2484.3,6.826]
[1750438079423,0.80504,2484.1,2484.0,8.30553]
[1750438079707,3.2078,2484.4,2484.1,2.01261]
[1750438079902,3.2078,2484.7,2484.6,0.80488]
[1750438080104,0.80484,2484.8,2484.7,0.80485]
[1750438080705,1.97710764,2484.8,2484.7,0.80485]
[1750438081101,0.80488,2484.6,2484.5,8.94648]
[1750438081305,0.80488,2484.6,2484.5,8.29058]
[1750438081513,4.01267,2484.7,2484.6,0.80488]
[1750438081712,3.2078,2484.7,2484.6,0.80488]
[1750438082102,3.2078,2484.7,2484.6,1.43998]
[1750438082607,4.01265,2484.7,2484.6,1.43998]
[1750438082808,3.2078,2484.7,2484.6,1.43998]
[1750438083009,3.2078,2484.7,2484.6,2.78948]
[1750438083805,3.2078,2485.3,2485.1,0.80469]
[1750438084000,0.80475,2485.1,2485.0,0.80473]
[1750438084206,1.97833946,2485.1,2485.0,0.80473]
[1750438084410,1.17358946,2485.1,2485.0,0.80473]
[1750438084613,1.97830946,2485.1,2485.0,0.80473]
[1750438084919,12.50174074,2485.5,2485.0,5.21967]
[1750438085215,13.30636074,2485.5,2485.4,0.80462]
[1750438085407,14.48023836,2485.5,2485.4,0.80462]
[1750438085607,0.80462,2485.4,2485.3,7.63063]
[1750438085808,1.97774733,2485.4,2485.3,7.63063]
[1750438086718,12.50174074,2485.5,2485.4,0.80462]
[1750438087014,0.80462,2485.4,2485.3,7.63063]
[1750438087220,0.672,2485.6,2485.3,6.826]
[1750438087410,1.97628684,2485.5,2485.4,0.80462]
[1750438087813,0.80462,2485.4,2485.3,6.826]
[1750438088306,1.9760954,2485.4,2485.3,7.63066]
[1750438088506,1.1714754,2485.4,2485.3,7.63066]
[1750438088720,0.80459,2485.5,2485.4,0.80461]
[1750438088916,1.97586208,2485.5,2485.3,7.63063]
[1750438089221,0.80462,2485.4,2485.3,7.63063]
[1750438089411,3.8798,2485.6,2485.3,7.63063]
[1750438089713,1.97583953,2485.5,2485.4,0.80462]
[1750438089920,1.17122953,2485.5,2485.4,10.44141652]
[1750438090115,0.80464,2485.4,2485.3,0.80464]
[1750438090310,0.80462,2485.4,2485.3,7.62964]
[1750438090507,0.80461,2485.5,2485.4,0.8046]
[1750438090712,0.80461,2485.5,2485.4,7.6296]
[1750438090912,1.3878,2485.8,2485.4,6.825]
[1750438091312,0.80459,2485.6,2485.5,0.80458]
[1750438091709,0.80455,2485.7,2485.6,0.80454]
[1750438091907,0.80457,2485.6,2485.5,0.80457]
[1750438092109,0.80459,2485.5,2485.4,6.825]
[1750438092314,0.80459,2485.5,2485.4,7.62962]
[1750438092511,3.39906,2485.8,2485.1,2.6052]
[1750438092710,0.80466,2485.3,2485.2,6.825]
[1750438092919,3.2078,2485.6,2484.6,4.5897]
[1750438093112,3.27153,2485.2,2484.6,3.2078]
[1750438093317,0.80485,2484.7,2484.6,0.80488]
[1750438093724,0.80485,2484.7,2484.5,0.6432]
[1750438093725,0.80488,2484.6,2484.5,1.44809]
[1750438094117,6.51238,2484.9,2484.5,1.44809]
[1750438094335,0.80488,2484.6,2484.5,1.4481]
[1750438094519,0.80491,2484.5,2484.4,0.80493]
[1750438095026,0.80491,2484.6,2484.5,0.80491]
[1750438095223,0.80495,2484.4,2484.3,0.80495]
[1750438095429,0.80498,2484.3,2484.2,7.62999]
[1750438095624,0.80504,2484.1,2484.0,6.825]
[1750438095821,2.01249,2484.3,2483.7,3.2078]
[1750438096128,0.80508,2484.0,2483.9,0.80509]
[1750438096714,1.2577,2484.2,2483.7,5.87629]
[1750438096917,2.06273,2484.2,2484.1,0.80504]
[1750438097216,3.2078,2484.4,2483.9,9.63679652]
[1750438097417,0.80498,2484.3,2484.2,0.80498]
[1750438097818,0.80498,2484.3,2484.0,6.825]
[1750438097819,0.80504,2484.1,2484.0,7.63007]
[1750438098020,0.80504,2484.1,2484.0,6.825]
[1750438098530,0.80514,2483.8,2483.7,3.8634]
[1750438098726,0.80514,2483.8,2483.7,10.6884]
[1750438099126,0.80514,2483.8,2483.7,7.4806]
[1750438099324,0.80514,2483.8,2483.7,8.28577]
[1750438099620,0.80514,2483.8,2483.7,7.4026]
[1750438100021,0.80514,2483.8,2483.7,0.6556]
[1750438100225,0.80521,2483.6,2483.5,0.80522]
[1750438100528,0.80519,2483.7,2483.6,0.80517]
[1750438100723,0.80522,2483.6,2483.5,0.80522]
[1750438101029,0.8052,2483.7,2483.6,0.80519]
[1750438101430,4.01297,2483.8,2483.7,0.80517]
[1750438102431,0.80519,2483.7,2483.6,0.80519]
[1750438102631,2.19589,2483.7,2483.6,0.80519]
[1750438102832,0.80523,2483.6,2483.5,0.80521]
[1750438103030,0.80524,2483.5,2483.4,0.80523]
[1750438103331,0.80524,2483.5,2483.4,7.55325]
[1750438103530,0.80523,2483.6,2483.5,0.80522]
[1750438103718,1.3907,2483.7,2483.4,6.748]
[1750438103916,1.3907,2483.7,2483.6,0.80521]
[1750438104118,2.19587,2483.7,2483.6,0.80521]
[1750438104519,1.3907,2483.7,2483.6,0.80521]
[1750438104734,2.19587,2483.7,2483.6,0.80521]
[1750438104934,1.3907,2483.7,2483.6,0.80521]
[1750438105234,0.80523,2483.6,2483.5,0.80521]
[1750438105727,0.6569,2483.6,2483.5,0.80521]
[1750438106031,0.80512,2483.9,2483.8,0.80514]
[1750438106724,0.8051,2484.0,2483.9,0.80508]
[1750438106924,2.1467,2484.0,2483.9,0.80508]
[1750438107334,0.80516,2483.9,2483.8,0.80513]
[1750438107534,1.3416,2483.9,2483.8,0.80513]
[1750438107734,2.14671,2483.9,2483.8,0.80513]
[1750438108338,1.3416,2483.9,2483.8,0.80513]
[1750438108528,0.8051,2484.0,2483.8,0.80513]
[1750438108529,4.4915,2484.1,2484.0,0.80508]
[1750438108927,5.29654,2484.1,2484.0,0.80508]
[1750438109224,4.4915,2484.1,2484.0,0.80508]
[1750438109732,3.8545,2484.1,2484.0,0.80508]
[1750438110338,4.65955,2484.1,2484.0,0.80508]
[1750438110939,3.8545,2484.1,2484.0,0.80508]
[1750438111133,3.2078,2484.1,2484.0,0.80508]
[1750438111725,3.8567,2484.5,2484.4,0.80495]
[1750438111925,4.01272,2484.5,2484.4,0.80495]
[1750438112142,5.31372,2484.5,2484.4,0.80495]
[1750438112432,0.80498,2484.4,2484.3,0.80496]
[1750438112737,2.17898,2484.4,2484.3,0.80496]
[1750438113941,0.80505,2484.2,2484.1,0.80505]
[1750438114330,0.80513,2483.9,2483.8,0.8051]
[1750438114529,0.80507,2484.1,2484.0,0.80505]
[1750438114739,0.80507,2484.1,2483.7,7.4092]
[1750438114740,0.80511,2484.0,2483.9,0.80508]